[Event "ESP-chT Honor Division 2022"]
[Site "Linares"]
[Date "2022.09.23"]
[Round "7.8"]
[White "Anton Guijarro, David"]
[Black "Hakobyan, Aram"]
[Result "1/2-1/2"]
[ECO "A06"]
[WhiteElo "2662"]
[BlackElo "2611"]
[Annotator "TA"]
[PlyCount "85"]
[EventDate "2022.09.17"]
[EventType "team-tourn"]
[EventCountry "ESP"]
[SourceTitle "playchess.com"]
[Source "ChessBase"]
[SourceQuality "1"]
[TimeControl "5400+30"]

{[%evp 13,85,0,22,25,15,25,27,20,44,36,45,45,45,42,46,6,5,5,5,6,1,8,14,0,0,0,0,0,0,0,6,10,12,0,0,0,0,-16,0,0,0,0,0,0,5,4,4,5,22,8,17,12,20,8,16,8,8,10,37,25,26,27,27,13,72,70,69,70,128,0,8,0,108,0]} 1. Nf3 d5 {[%emt 0:02:42]} 2. e3 {[%emt 0:00:20]} Nf6 {[%emt 0:00:40]} 3. c4 {[%emt 0:00:16]} e6 {[%emt 0:00:06]} 4. Nc3 {[%emt 0:00:18]} Be7 {[%emt 0:00:30]} 5. b3 {[%emt 0:00:52]} O-O {[%emt 0:00:32]} 6. Bb2 {[%emt 0:00:35]} c5 {[%emt 0:00:52] The main line 6...c5 scores better than 6...b6.} 7. cxd5 {[%emt 0:00:32]} exd5 {[%emt 0:00:13]} 8. d4 {[%emt 0:00:35] A13: English Opening: 1...e6.} Nc6 {[%emt 0:01:36]} 9. Be2 {[%emt 0:00:58]} Ne4 {[%emt 0:00:29]} 10. dxc5 {[%emt 0:01:26] White has an edge.} Qa5 {[%emt 0:01:03]} 11. Rc1 {[%emt 0:00:36]} Bf6 {[%emt 0:00:15][%cal Re4c3]} 12. Nd4 $1 {[%emt 0:00:28]} Nxc5 {[%emt 0:00:49][%cal Be4c5,Bc5e6,Be6d4,Bd4c2,Bc2b4,Bb4a2][%mdl 32]} 13. Nxc6 $1 {[%emt 0:00:36]} bxc6 {[%emt 0:00:03]} 14. Qd2 {[%emt 0:00:32][%cal Oc3a4] [#]} d4 $146 {[%emt 0:00:42]} ({Predecessor:} 14... Ba6 15. Nd1 Qxd2+ 16. Kxd2 Ne4+ 17. Ke1 Bxe2 18. Kxe2 Rfc8 19. Bxf6 Nxf6 20. Nb2 c5 {½-½ (110) Carlsen,M (2864)-Ding,L (2799) chess24.com INT 2022}) 15. exd4 {[%emt 0:00:16]} Rd8 {[%emt 0:02:28] [#]} 16. Ne4 $1 {[%emt 0:01:02]} Qxd2+ {[%emt 0:00:12]} 17. Nxd2 {[%emt 0:00:05]} Ne6 {[%emt 0:00:31]} 18. Ne4 {[%emt 0:00:38]} Bxd4 {[%emt 0:01:09]} 19. Bxd4 {[%emt 0:00:22]} Nxd4 {[%emt 0:02:33]} 20. Bc4 {[%emt 0:00:25]} Bf5 {[%emt 0:06:03]} (20... Re8 $5 21. f3 $8 Bf5 $11) 21. Ng3 {[%emt 0:10:55]} Nc2+ {[%emt 0:08:08]} 22. Ke2 {[%emt 0:03:26]} Bg6 {[%emt 0:00:04]} 23. Rhd1 {[%emt 0:19:05]} Nb4 {[%emt 0:02:07]} 24. f4 {[%emt 0:09:22]} Nxa2 {[%emt 0:04:07] Threatens to win with ...Rxd1.} 25. Rxd8+ {[%emt 0:00:28]} Rxd8 {[%emt 0:00:02]} 26. Ra1 {[%emt 0:00:13]} Nc3+ {[%emt 0:02:13]} 27. Ke3 {[%emt 0:02:53] Black must now prevent f5.} Nd5+ {[%emt 0:01:58]} 28. Kf3 {[%emt 0:00:32] Strongly threatening f5.} Bc2 {[%emt 0:00:51]} 29. Rxa7 {[%emt 0:04:00]} Re8 {[%emt 0:17:13]} 30. Kf2 {[%emt 0:12:37][%cal Ob3b4]} h5 {[%emt 0:18:29]} 31. Ne2 {[%emt 0:05:03] White wants to play Nd4.} Be4 {[%emt 0:05:33]} 32. Nd4 {[%emt 0:09:35]} Ne7 {[%emt 0:02:53]} 33. g3 {[%emt 0:01:41]} Kf8 {[%emt 0:00:57]} 34. Nf3 {[%emt 0:03:10]} Bxf3 {[%emt 0:08:11]} 35. Kxf3 $11 {[%emt 0:00:04][%mdl 4096] Endgame KRB-KRN} Nd5 {[%emt 0:00:06]} 36. Ra5 {[%emt 0:03:44]} Re3+ {[%emt 0:01:51]} 37. Kf2 {[%emt 0:00:30]} Rc3 {[%emt 0:00:26]} 38. Ra6 {[%emt 0:04:19]} f5 {[%emt 0:06:37]} (38... Ke8 $11 {keeps the balance.}) 39. Rxc6 $16 {[%emt 0:01:36]} Rc2+ {[%emt 0:02:01]} 40. Kf3 {[%emt 0:03:48]} Rc3+ {[%emt 0:00:10] [#]} (40... Nf6 $14 41. Rc8+ Ke7) 41. Kf2 {[%emt 0:00:53]} (41. Kg2 $1 $16 Ne3+ 42. Kh3) 41... Rc2+ $11 {[%emt 0:00:03]} 42. Kf3 {[%emt 0:01:35]} ({Better is} 42. Ke1 $11 Ne3 43. Rc8+ Ke7 44. Rc7+ Kd6 45. Rxg7) 42... Rc3+ $16 {[%emt 0:00:01] [#]} 43. Kf2 {[%emt 0:00:51] Weighted Error Value: White=0.11 (very precise) /Black=0.06 (flawless)} ({Only move:} 43. Kg2 $1 $16 Ne3+ 44. Kh3) 1/2-1/2

[Event "ESP-chT Honor Division 2022"]
[Site "Linares"]
[Date "2022.09.23"]
[Round "7.9"]
[White "Arizmendi Martinez, Julen Luis"]
[Black "Kuzubov, Yuriy"]
[Result "0-1"]
[ECO "B33"]
[WhiteElo "2488"]
[BlackElo "2627"]
[Annotator "TA"]
[PlyCount "92"]
[EventDate "2022.09.17"]
[EventType "team-tourn"]
[EventCountry "ESP"]
[SourceTitle "playchess.com"]
[Source "ChessBase"]
[SourceQuality "1"]
[TimeControl "5400+30"]

{[%evp 24,92,16,20,12,23,27,9,10,0,20,36,16,22,27,13,14,0,28,0,0,0,0,0,0,0,0,-8,-10,-28,-37,-28,-24,-31,-24,-38,42,0,35,0,0,-7,-7,-146,-121,-157,-126,-200,-175,-202,-207,-263,-247,-269,-279,-308,-337,-340,-334,-360,-350,-365,-372,-365,-303,-1572,-1553,-1777,-1682,-1581,-1528]} 1. e4 {[%emt 0:02:28]} c5 {[%emt 0:00:07]} 2. Nf3 {[%emt 0:00:11]} Nc6 {[%emt 0:00:13]} 3. d4 {[%emt 0:00:40]} cxd4 {[%emt 0:00:07]} 4. Nxd4 {[%emt 0:00:09]} Nf6 {[%emt 0:00:10]} 5. Nc3 {[%emt 0:00:07]} e5 {[%emt 0:01:19]} 6. Ndb5 {[%emt 0:00:33]} d6 {[%emt 0:00:07]} 7. Bg5 {[%emt 0:01:20]} a6 {[%emt 0:00:05]} 8. Na3 {[%emt 0:00:15]} b5 {[%emt 0:00:06]} 9. Nd5 {[%emt 0:00:40]} Be7 {[%emt 0:00:06]} 10. Bxf6 {[%emt 0:00:32]} Bxf6 {[%emt 0:00:05]} 11. c3 {[%emt 0:01:05]} Bg5 {[%emt 0:03:12]} 12. Nc2 {[%emt 0:00:27]} Rb8 {[%emt 0:00:07]} 13. a4 {[%emt 0:07:51]} bxa4 {[%emt 0:00:15] B33: Sicilian: Pelikan and Sveshnikov Variations.} 14. Ncb4 {[%emt 0:00:09]} Nxb4 {[%emt 0:00:09]} 15. cxb4 {[%emt 0:00:15]} O-O {[%emt 0:00:28] The position is equal.} 16. h4 {[%emt 0:38:33]} Bh6 {[%emt 0:01:00]} 17. Rxa4 {[%emt 0:06:04]} a5 {[%emt 0:18:02]} 18. b5 {[%emt 0:01:22]} (18. Rxa5 $2 {[#]} Rxb4 $3 {[%mdl 512]} 19. Ra8 Rxe4+ 20. Be2 Rd4 $17) ({Much weaker is} 18. bxa5 Rxb2 19. Bd3 f5 $17) 18... Bd7 {[%emt 0:00:09]} 19. Qb3 {[%emt 0:06:29]} Kh8 {[%emt 0:06:28]} 20. Be2 {[%emt 0:02:24]} Be6 {[%emt 0:31:58]} 21. g3 {[%emt 0:07:51]} f5 {[%emt 0:01:58]} 22. exf5 {[%emt 0:08:06]} Rxf5 {[%emt 0:00:49] [#] Strongly threatening ...Qd7.} 23. O-O {[%emt 0:00:35]} e4 {[%emt 0:16:35] [#]} 24. Rd4 $146 {[%emt 0:02:05]} ({Predecessor:} 24. Rd1 Qg8 25. Bc4 Qf7 26. Nc3 Bxc4 27. Qxc4 d5 28. Nxd5 Rxf2 29. Qxe4 Rf8 30. Raa1 Rf3 31. Kg2 Rf2+ 32. Kg1 Rf3 33. Kg2 Rf2+ {½-½ (33) Kriebel,T (2459)-Sebenik,M (2512) Zillertal 2015}) 24... g5 {[%emt 0:06:57]} 25. h5 {[%emt 0:06:35]} Bg7 {[%emt 0:02:43]} 26. Qd1 {[%emt 0:02:46]} Bxd4 {[%emt 0:01:56]} 27. Qxd4+ {[%emt 0:00:01]} Re5 {[%emt 0:00:32]} 28. Ne3 {[%emt 0:00:58]} Qb6 {[%emt 0:00:31]} 29. Qd2 {[%emt 0:00:05]} Kg8 {[%emt 0:06:45]} ({Better is} 29... Rc8 $15) 30. Rd1 {[%emt 0:03:02][%mdl 1024] White has compensation.} (30. Rc1 $5 {[%cal Rc1c6]} Bd7 31. Bc4+ Kf8 32. h6 $11) 30... Rd8 {[%emt 0:00:35]} 31. Qc3 {[%emt 0:01:45] aiming for Bc4.} (31. Rc1 $5 {[%cal Rc1c6]}) 31... Rc8 {[%emt 0:00:49]} 32. Qd2 {[%emt 0:00:07]} d5 {[%emt 0:00:29]} 33. Nc2 {[%emt 0:00:56]} (33. h6 $11 {keeps the balance.}) 33... h6 {[%emt 0:01:15]} 34. Nd4 {[%emt 0:00:27]} Bd7 {[%emt 0:00:39] Against Nc6} 35. Qe3 {[%emt 0:00:27]} (35. Ra1 $17) 35... Ree8 {[%emt 0:00:23][%cal Be5e8,Be8f8,Bf8f7][%mdl 32]} 36. Qb3 {[%emt 0:00:34]} Qc5 {[%emt 0:00:40]} 37. Qe3 {[%emt 0:00:28]} Rf8 {[%emt 0:00:28]} 38. Kg2 {[%emt 0:00:33]} Rf7 {[%emt 0:00:25]} 39. Rd2 {[%emt 0:00:19]} Rcf8 {[%emt 0:00:26]} 40. Bd1 {[%emt 0:00:18]} Bxb5 {[%emt 0:00:22]} 41. Rc2 {[%emt 0:00:32]} Qb6 {[%emt 0:00:16]} 42. Bg4 {[%emt 0:00:31]} Bd3 {[%emt 0:00:44]} 43. Rd2 {[%emt 0:00:47]} Rf6 {[%emt 0:00:12] Against Be6+} 44. Be6+ $2 {[%emt 0:00:30]} (44. b3) 44... Rxe6 $19 {[%emt 0:00:42] Black is clearly winning.} 45. Nxe6 {[%emt 0:00:01]} Qxe6 {[%emt 0:00:29]} 46. Rxd3 {[%emt 0:00:12]} Rf3 {[%emt 0:00:07] Weighted Error Value: White=0.43/Black=0.08 (flawless)} 0-1

[Event "ESP-chT Honor Division 2022"]
[Site "Linares"]
[Date "2022.09.23"]
[Round "7.10"]
[White "Forcen Esteban, Daniel"]
[Black "Macias Pino, Diego"]
[Result "0-1"]
[ECO "A06"]
[WhiteElo "2580"]
[BlackElo "2381"]
[Annotator "TA"]
[PlyCount "82"]
[EventDate "2022.09.17"]
[EventType "team-tourn"]
[EventCountry "ESP"]
[SourceTitle "playchess.com"]
[Source "ChessBase"]
[SourceQuality "1"]
[TimeControl "5400+30"]

{[%evp 10,82,11,7,13,14,26,-18,-16,-10,8,16,21,-75,-74,-70,-69,-71,0,0,0,-44,-10,-32,15,16,25,0,25,21,21,-16,-15,-15,0,-35,31,0,0,0,0,0,0,0,0,-14,0,0,0,-50,0,0,0,0,0,0,0,0,89,0,0,0,0,0,0,0,0,0,0,0,0,-29979,-29980,-29980,-29979]} 1. Nf3 d5 {[%emt 0:01:26]} 2. g3 {[%emt 0:00:38]} c6 {[%emt 0:00:50]} 3. Bg2 {[%emt 0:00:05]} Bg4 {[%emt 0:00:19]} 4. O-O {[%emt 0:00:08]} Nd7 {[%emt 0:00:08]} 5. h3 {[%emt 0:00:09]} Bh5 {[%emt 0:01:10]} 6. d3 {[%emt 0:00:24]} e6 {[%emt 0:02:16] A07: Réti Opening: New York and Capablanca Systems.} 7. e4 {[%emt 0:02:31]} Bd6 {[%emt 0:03:21]} 8. Qe1 {[%emt 0:14:20]} Ne7 {[%emt 0:10:28][%cal Bg8e7,Be7g6,Bg6e5][%mdl 32] The position is equal.} 9. Nh4 {[%emt 0:04:19]} dxe4 {[%emt 0:03:53]} 10. dxe4 {[%emt 0:00:52]} Ng6 {[%emt 0:01:46] [#]} 11. Nf3 $146 {[%emt 0:02:15]} (11. Nxg6 $11 hxg6 12. Be3 (12. g4 $2 Bxg4 13. Qe3 Bxh3 $19)) ({Predecessor:} 11. Nxg6 Bxg6 12. f4 f6 13. Nd2 O-O 14. Nc4 Bc5+ 15. Kh2 Qe7 16. a3 Nb6 17. Na5 {1-0 (70) Petrosian,T (2636)-Hovhannisyan,R (2589) Yerevan 2012}) 11... Bxf3 $17 {[%emt 0:08:03] Black is more active.} 12. Bxf3 {[%emt 0:00:49]} h5 $1 {[%emt 0:01:33]} 13. Qd1 {[%emt 0:15:51][%csl LRd6,LRh5]} Nf6 {[%emt 0:00:43]} ({Better is} 13... Qe7 $17) 14. h4 $1 $11 {[%emt 0:00:28]} Ne5 {[%emt 0:07:43]} 15. Bg5 {[%emt 0:11:55]} Qc7 {[%emt 0:15:50]} ({But not} 15... Nxf3+ 16. Qxf3 Be7 17. Rd1 $14) 16. Nd2 {[%emt 0:01:17]} O-O-O {[%emt 0:01:21]} (16... Nfg4 $1 $15 {feels stronger.}) 17. Qe2 {[%emt 0:06:21]} Be7 {[%emt 0:01:52]} 18. Nc4 {[%emt 0:15:15]} Nxc4 {[%emt 0:06:48]} 19. Qxc4 {[%emt 0:00:50]} Ng4 {[%emt 0:01:19] And now ...Bxg5 would win.} 20. Bxg4 {[%emt 0:01:51]} (20. Bf4 $5 {[%cal Rf4c7]} Bd6 21. Bxd6 Qxd6 22. Rad1 $11) 20... hxg4 {[%emt 0:00:06]} 21. Bf4 {[%emt 0:00:34]} Qa5 {[%emt 0:03:11]} 22. Kg2 {[%emt 0:04:35]} Qc5 {[%emt 0:05:46]} (22... g5 $15 23. hxg5 Bxg5) 23. Qe2 {[%emt 0:00:51]} g5 {[%emt 0:06:38]} 24. hxg5 {[%emt 0:00:59]} Bxg5 {[%emt 0:00:20]} 25. Qxg4 {[%emt 0:05:24]} Bxf4 {[%emt 0:00:15]} 26. Qxf4 {[%emt 0:00:05]} Qxc2 {[%emt 0:00:07]} ({Don't play} 26... Qh5 27. Rh1 Qg6 28. Rad1 $16) 27. Rh1 {[%emt 0:01:13][%cal Oa1d1]} Rhf8 {[%emt 0:02:27]} 28. b3 {[%emt 0:01:06]} Rd4 {[%emt 0:07:27]} 29. Rae1 {[%emt 0:00:19]} (29. Rh4 $11) 29... a6 {[%emt 0:00:58]} ({Black should try} 29... Qxa2 $15 30. Ra1 Qd2) 30. Rh7 {[%emt 0:01:38]} Rd7 {[%emt 0:00:20]} 31. Reh1 {[%emt 0:00:48]} Qxa2 {[%emt 0:01:50]} 32. Rh8 {[%emt 0:02:47]} Qa3 {[%emt 0:00:44]} 33. R1h7 {[%emt 0:03:47]} Qc5 {[%emt 0:02:19] [#]} (33... b5 $11) 34. Rxf8+ {[%emt 0:01:47]} ({White should play} 34. g4 $1 $16) 34... Qxf8 $16 {[%emt 0:00:01][%mdl 4096] Endgame KQR-KQR} 35. Qe5 $1 {[%emt 0:00:58] Strongly threatening Rh8.} Qb4 {[%emt 0:01:53]} 36. g4 {[%emt 0:00:38]} Qxb3 {[%emt 0:00:49] aiming for ...Qd1.} 37. g5 {[%emt 0:00:27]} Qb5 {[%emt 0:01:14]} 38. Qf4 {[%emt 0:00:30]} Qc5 {[%emt 0:00:33]} 39. Kg3 {[%emt 0:00:42]} b5 {[%emt 0:01:03] Threatens to win with ...b4.} 40. Kg4 $2 {[%emt 0:00:14][%mdl 8192] [#]} (40. Rh8+ $11 Rd8 41. Rh7) 40... f5+ $1 {[%emt 0:00:13]} 41. exf5 {[%emt 0:00:25]} exf5+ {[%emt 0:00:15] Weighted Error Value: White=0.33/Black=0.14 (very precise)} 0-1

[Event "ESP-chT Honor Division 2022"]
[Site "Linares"]
[Date "2022.09.23"]
[Round "7.11"]
[White "Llobell Cortell, Enrique"]
[Black "Buksa, Nataliya"]
[Result "1/2-1/2"]
[ECO "B31"]
[WhiteElo "2380"]
[BlackElo "2407"]
[Annotator "TA"]
[PlyCount "103"]
[EventDate "2022.09.17"]
[EventType "team-tourn"]
[EventCountry "ESP"]
[SourceTitle "playchess.com"]
[Source "ChessBase"]
[SourceQuality "1"]
[TimeControl "5400+30"]

{[%evp 15,103,2,15,19,20,8,28,7,11,-7,0,-23,-26,0,0,-43,-37,-24,-25,-42,22,11,17,20,18,22,16,0,0,0,0,-3,0,0,0,0,0,0,0,0,0,0,0,0,0,0,0,-52,-46,-56,-67,-69,-53,-58,-55,-59,-43,-36,-22,-21,-21,-33,-26,-16,-10,-9,0,0,0,0,0,0,0,0,8,0,0,0,0,0,0,0,0,0,0,0,0,0,0,0]} 1. e4 {[%emt 0:03:14]} c5 {[%emt 0:00:03]} 2. Nf3 {[%emt 0:00:54]} Nc6 {[%emt 0:00:04]} 3. Bb5 {[%emt 0:02:20]} g6 {[%emt 0:00:32]} 4. O-O {[%emt 0:01:31]} Bg7 {[%emt 0:00:13]} 5. c3 {[%emt 0:01:35]} e5 {[%emt 0:01:27]} 6. d4 cxd4 {[%emt 0:00:16]} 7. cxd4 {[%emt 0:03:13]} exd4 {[%emt 0:00:03]} 8. Bf4 {[%emt 0:01:45]} a6 {[%emt 0:00:03]} 9. Ba4 {[%emt 0:01:13][%mdl 1024] White has compensation. B31: Sicilian: 2...Nc6 3 Bb5 g6.} Nge7 {[%emt 0:00:04] 9...Nge7 scores better than 9...b5.} 10. Bd6 {[%emt 0:01:09]} b5 {[%emt 0:00:02]} 11. Bb3 {[%emt 0:03:11] White has an edge.} Bb7 {[%emt 0:00:03]} 12. Re1 {[%emt 0:01:42]} Nc8 {[%emt 0:04:14]} 13. e5 {[%emt 0:00:16][%cal Ob1c3]} Nxd6 {[%emt 0:00:03]} 14. exd6+ {[%emt 0:00:08]} Kf8 {[%emt 0:00:01]} 15. a4 {[%emt 0:05:36] [#]} Bf6 $146 {[%emt 0:09:25]} ({Predecessor:} 15... Qf6 16. Nbd2 Qxd6 17. Ne4 Qb4 18. axb5 axb5 19. Rxa8+ Bxa8 20. Neg5 Nd8 21. Nxf7 Bxf3 22. Ne5 Bxe5 23. Qxf3+ Kg7 24. Rxe5 Rf8 25. Qd5 {½-½ (25) Tauscher,K (2465)-Sydlik,J (2353) Remote email 2012}) 16. Nbd2 {[%emt 0:06:31]} Kg7 {[%emt 0:15:02]} 17. Bd5 {[%emt 0:25:16]} Na5 {[%emt 0:21:53]} ({Black should try} 17... bxa4 $15 18. Ne4 Re8) 18. Bxb7 $11 {[%emt 0:04:23]} Nxb7 {[%emt 0:00:03]} 19. Ne4 {[%emt 0:16:40] [#] axb5 is the strong threat.} Rc8 $1 {[%emt 0:04:14]} 20. axb5 {[%emt 0:01:12]} ({Of course not} 20. Nxd4 bxa4 21. Ra3 (21. Rxa4 Re8 $15) (21. Qxa4 Nc5 $15) 21... Re8 $15) 20... axb5 {[%emt 0:00:12]} 21. Ra7 {[%emt 0:11:50]} Nc5 {[%emt 0:01:43] Strongly threatening ...Nxe4.} 22. Nxf6 {[%emt 0:03:18]} ({Avoid the trap} 22. Nxd4 $2 Re8 23. Nxc5 Rxe1+ 24. Qxe1 Rxc5 $17) 22... Qxf6 {[%emt 0:00:04]} 23. Qxd4 {[%emt 0:02:29]} Rhe8 {[%emt 0:08:09]} 24. Rxe8 {[%emt 0:02:28]} Qxd4 {[%emt 0:00:20]} 25. Nxd4 {[%emt 0:00:04]} Rxe8 {[%emt 0:00:01][%cal Re8e1][%mdl 4096] [#] Endgame KRN-KRN} 26. g3 {[%emt 0:00:29]} b4 {[%emt 0:00:21]} 27. Rc7 {[%emt 0:00:59]} Re5 {[%emt 0:00:39]} 28. Nc2 {[%emt 0:00:25]} b3 {[%emt 0:04:13]} 29. Ne3 {[%emt 0:00:01]} h5 {[%emt 0:00:07]} 30. Kf1 {[%emt 0:00:57]} Kf6 {[%emt 0:00:05]} 31. Ke2 {[%emt 0:00:19]} (31. Nc4 $11 Rd5 32. Ne3) 31... Ke6 $15 {[%emt 0:05:25]} 32. Rc8 {[%emt 0:00:50] aiming for f4.} Kxd6 {[%emt 0:00:36]} 33. Rb8 {[%emt 0:00:30]} Re4 {[%emt 0:01:03]} 34. Kd2 {[%emt 0:00:25]} Ra4 {[%emt 0:03:30]} 35. Kc3 {[%emt 0:00:34]} Ra1 {[%emt 0:00:37]} 36. Rb6+ $1 {[%emt 0:00:22]} Ke5 {[%emt 0:00:06]} 37. Nc4+ {[%emt 0:00:31]} Ke4 {[%emt 0:00:43] Threatens to win with ...Na4+.} 38. Kb4 {[%emt 0:00:38]} Nd3+ {[%emt 0:02:15]} 39. Kxb3 {[%emt 0:00:07]} Nxf2 {[%emt 0:00:03] The position is equal.} 40. Nd6+ {[%emt 0:00:16]} Kf3 {[%emt 0:05:08]} 41. Nxf7 {[%emt 0:00:07]} Rh1 {[%emt 0:00:10]} 42. Rxg6 {[%emt 0:00:22]} Rxh2 {[%emt 0:00:03]} 43. Ne5+ {[%emt 0:00:43]} Ke4 {[%emt 0:00:16]} 44. Nxd7 {[%emt 0:00:26]} Ng4 {[%emt 0:03:41]} 45. Nf6+ {[%emt 0:01:19]} Kf3 {[%emt 0:00:54]} 46. Nxg4 {[%emt 0:00:38]} hxg4 $11 {[%emt 0:00:07] KR-KR} 47. Kc3 {[%emt 0:00:26]} Kxg3 {[%emt 0:00:51]} 48. b4 {[%emt 0:00:02][%cal Bb2b4,Bb4b5,Bb5b6][%mdl 32]} Kf4 {[%emt 0:00:04]} 49. b5 {[%emt 0:00:46]} g3 {[%emt 0:00:54]} 50. b6 {[%emt 0:00:29]} Rh1 {[%emt 0:00:15]} 51. Kc4 {[%emt 0:00:14]} Rb1 {[%emt 0:00:09]} 52. Kc5 {[%emt 0:00:12] Weighted Error Value: White=0.07 (flawless) /Black=0.05 (flawless)} 1/2-1/2

[Event "ESP-chT Honor Division 2022"]
[Site "Linares"]
[Date "2022.09.23"]
[Round "7.12"]
[White "Llorente Zaro, Alfonso"]
[Black "Garcia Martin, Marta"]
[Result "1-0"]
[ECO "A06"]
[WhiteElo "2448"]
[BlackElo "2325"]
[Annotator "TA"]
[PlyCount "79"]
[EventDate "2022.09.17"]
[EventType "team-tourn"]
[EventCountry "ESP"]
[SourceTitle "playchess.com"]
[Source "ChessBase"]
[SourceQuality "1"]
[TimeControl "5400+30"]

{[%evp 9,79,31,30,25,50,49,49,17,7,20,23,18,20,9,14,0,0,-39,-41,-34,0,-9,0,-5,0,0,0,-30,-29,-34,-30,-38,-27,-43,-20,-20,-20,-25,-27,-26,0,-27,-18,-44,-51,-53,-47,-172,-170,-168,-164,-144,-86,-82,-26,-59,59,66,822,95,80,59,565,195,206,118,104,98,1706,1523,1173,1128]} 1. Nf3 d5 {[%emt 0:02:49]} 2. g3 {[%emt 0:00:18]} Nd7 {[%emt 0:06:48]} 3. d4 {[%emt 0:07:02]} Nb6 {[%emt 0:01:15]} 4. Bg2 {[%emt 0:00:26]} Nf6 {[%emt 0:00:18]} 5. O-O {[%emt 0:00:27]} Bf5 {[%emt 0:14:16]} 6. Nh4 {[%emt 0:05:01] [#] D02: 1 d4 d5 2 Nf3 sidelines, including 2...Nf6 3 g3 and 2...Nf6 3 Bf4.} Bd7 $146 {[%emt 0:01:08]} ({Predecessor:} 6... Bg6 7. Nxg6 hxg6 8. Nd2 c6 9. e4 dxe4 10. Nxe4 Nxe4 11. Bxe4 e6 12. a4 a5 {½-½ (44) Bruzon Batista,L (2639)-Javakhadze,Z (2462) Las Vegas 2021}) 7. Nc3 {[%emt 0:03:14]} e6 {[%emt 0:10:23]} 8. Bg5 {[%emt 0:19:32] White is slightly better.} Be7 {[%emt 0:01:35]} 9. Nf3 {[%emt 0:00:31]} h6 {[%emt 0:08:47]} 10. Bf4 {[%emt 0:02:27]} O-O {[%emt 0:10:08]} 11. Ne5 {[%emt 0:01:56]} Be8 {[%emt 0:04:09]} 12. Re1 {[%emt 0:11:27]} c5 {[%emt 0:01:14]} 13. e4 {[%emt 0:10:51]} cxd4 {[%emt 0:12:06]} 14. Qxd4 {[%emt 0:00:08]} Rc8 {[%emt 0:00:06]} (14... dxe4 $5 {[%cal Rd8d4]} 15. Be3 Qxd4 16. Bxd4 Bb4 $15) 15. Rad1 {[%emt 0:09:38][%cal Re4d5]} Bc5 {[%emt 0:03:46]} 16. Qd3 {[%emt 0:00:43][%cal Re4d5]} Na4 {[%emt 0:16:09]} 17. Nxa4 {[%emt 0:08:10]} ({Don't blunder} 17. exd5 $2 Nxb2 18. Qd2 Nxd1 19. Rxd1 Bb4 20. dxe6 Qxd2 21. Bxd2 fxe6 $19) 17... Bxa4 {[%emt 0:00:04]} 18. b3 {[%emt 0:05:26] [#]} Qb6 $1 {[%emt 0:00:03]} 19. Be3 {[%emt 0:04:53]} (19. bxa4 Bxf2+ 20. Kf1 (20. Kh1 Bxe1 21. Rxe1 dxe4 $15) 20... Bxe1 21. Rxe1 dxe4 22. Bxe4 Rfd8 $17) 19... Bb5 {[%emt 0:01:17]} 20. Qd2 {[%emt 0:01:09]} Bxe3 {[%emt 0:03:23]} 21. Rxe3 {[%emt 0:00:47][%cal Re4d5]} Rfd8 {[%emt 0:00:34]} 22. exd5 {[%emt 0:03:27]} Nxd5 {[%emt 0:00:04]} 23. Bxd5 {[%emt 0:00:06]} Rxd5 {[%emt 0:01:01]} 24. Qc1 {[%emt 0:00:07]} Rcd8 {[%emt 0:00:33]} 25. Ree1 {[%emt 0:01:40]} Qc7 {[%emt 0:00:31] White must now prevent ...Rxd1.} 26. Ng4 {[%emt 0:01:11]} Qc3 {[%emt 0:00:22]} 27. Rxd5 {[%emt 0:01:12]} Rxd5 {[%emt 0:00:17]} 28. Rd1 {[%emt 0:01:03]} ({White should try} 28. a4 $15 Bc6 29. Ne3) 28... Be2 $1 $19 {[%emt 0:00:46][%csl LRd1,LRg4]} 29. Rxd5 {[%emt 0:00:33]} exd5 {[%emt 0:00:02][%mdl 4096] Endgame KQB-KQN} 30. Ne3 {[%emt 0:00:34]} d4 {[%emt 0:00:36]} (30... Bf3 $142 31. Nf1 Be4) 31. Nd5 $17 {[%emt 0:00:22] [#]} Qf3 {[%emt 0:00:56]} (31... Qa5 $1 $17 {[%cal Ra5d5]} 32. Nf4 Bf3) 32. Qd2 {[%emt 0:00:31]} Bb5 {[%emt 0:00:22]} ({Much weaker is} 32... Qxd5 33. Qxe2 f5 34. Qd3 $11) (32... Qe4 $15) 33. Qxd4 $14 {[%emt 0:00:22]} Kh8 $2 {[%emt 0:00:36][%mdl 8192] [#]} (33... Qe2 $14 34. c4 Bc6) 34. c4 $2 {[%emt 0:00:30]} (34. Ne7 $1 $18 {and the rest is easy. Qd8+ would kill now.} Be8 35. Qd8) 34... Bc6 $16 {[%emt 0:00:26]} 35. Qxa7 {[%emt 0:00:46]} b5 $2 {[%emt 0:00:36][%mdl 8192]} ({Better is} 35... Qd1+ $14 36. Kg2 Bxd5+ 37. cxd5 Qxd5+ 38. f3 Qd2+ 39. Qf2 Qc3) 36. Qb8+ $2 {[%emt 0:00:51]} (36. Qc5 Qd1+ 37. Kg2) 36... Kh7 $18 {[%emt 0:00:03]} 37. Qf4 {[%emt 0:00:26]} (37. Qd6 $18 Ba8 38. Qc5) 37... Qd1+ $16 {[%emt 0:00:39]} 38. Kg2 {[%emt 0:00:02] And now Qf5+ would win.} bxc4 $2 {[%emt 0:00:30][%mdl 8192]} (38... Qd3 $16) 39. Qf5+ $18 {[%emt 0:00:09]} Kh8 {[%emt 0:00:17]} 40. Qc8+ {[%emt 0:00:05] Weighted Error Value: White=0.61/Black=0.36} 1-0